bitfinex-derivatives/quotes_SOLF0:USTF0_20250309
["timestamp","ask_amount","ask_price","bid_price","bid_amount"]
[1741562246490,0.05301311,127.49,127.48,7.8444]
[1741562246796,99.98238303,127.57,127.51,0.04983771]
[1741562246991,0.0527292,127.5,127.47,52.00008303]
[1741562247192,47.9823,127.57,127.47,52.00008303]
[1741562247493,43.78,127.57,127.47,52.05627598]
[1741562247796,47.3691,127.61,127.5,52.00008303]
[1741562247996,43.46,127.61,127.53,52.00008303]
[1741562248189,47.2655,127.63,127.53,52.00008303]
[1741562248393,47.2655,127.63,127.51,47.4893]
[1741562248594,52.00008303,127.62,127.5,52.00008303]
[1741562248795,0.05009636,127.59,127.57,1.746e-05]
[1741562248991,43.36,127.58,127.57,1.746e-05]
[1741562249189,43.36,127.58,127.47,95.38008303]
[1741562249390,43.36,127.58,127.46,4.0493]
[1741562249595,3.9091,127.57,127.46,4.0493]
[1741562249997,0.05069945,127.53,127.5,0.05393438]
[1741562250198,7.843,127.52,127.5,0.05393438]
[1741562250398,43.25069945,127.53,127.5,0.05393438]
[1741562250800,7.8462,127.46,127.33,265.54278309]
[1741562251004,43.16,127.48,127.39,56.06898303]
[1741562251199,43.12,127.48,127.39,56.06898303]
[1741562251501,7.8474,127.45,127.4,6.55078073]
[1741562251703,43.12,127.48,127.4,6.55078073]
[1741562251903,7.8484,127.43,127.41,0.05675261]
[1741562252206,43.02,127.43,127.41,0.05675261]
[1741562252400,43.02,127.43,127.34,8.2809]
[1741562253204,43.02,127.43,127.34,4.212]
[1741562253398,7.8506,127.39,127.34,4.212]
[1741562253599,0.05297976,127.4,127.37,0.05327622]
[1741562254306,0.05297976,127.4,127.3,55.95568303]
[1741562254504,0.05297976,127.4,127.33,52.00008303]
[1741562254805,42.86,127.43,127.32,52.00008303]
[1741562255498,0.05403573,127.39,127.36,0.04963514]
[1741562258301,23.67,127.55,127.36,0.04963514]
[1741562258302,42.54,127.45,127.38,52.00008303]
[1741562258703,42.54,127.45,127.37,7.9921]
[1741562258902,42.54,127.45,127.32,52.00008303]
[1741562259112,42.54,127.45,127.33,11.7362]
[1741562259316,3.8098,127.44,127.33,3.8821]
[1741562259607,0.05346067,127.4,127.38,0.0571917]
[1741562259903,42.56,127.39,127.31,4.11]
[1741562260115,46.6202,127.39,127.31,4.11]
[1741562260608,46.6202,127.39,127.26,52.00008303]
[1741562260805,52.00008303,127.38,127.28,7.8572]
[1741562261006,0.05086557,127.34,127.31,0.05583204]
[1741562262303,0.05086557,127.34,127.32,7.8544]
[1741562262503,0.05086557,127.34,127.31,52.05591507]
[1741562262905,42.28,127.42,127.31,52.05591507]
[1741562263110,42.28,127.42,127.34,52.00008303]
[1741562263413,3.8098,127.44,127.39,7.8505]
[1741562263608,3.9182,127.48,127.4,52.00008303]
[1741562263807,46.4789,127.49,127.4,52.00008303]
[1741562264007,46.4789,127.49,127.43,0.05065747]
[1741562264207,0.05569313,127.45,127.43,0.05065747]
[1741562264609,0.05569313,127.45,127.36,4.1171]
[1741562265005,52.00008303,127.44,127.32,56.05948303]
[1741562265312,42.26,127.43,127.32,56.05948303]
[1741562265907,0.05923139,127.39,127.36,0.05555132]
[1741562266609,42.14,127.38,127.36,0.05555132]
[1741562266916,42.14,127.38,127.27,8.0399]
[1741562267118,46.1708,127.38,127.27,8.0399]
[1741562267913,0.05463863,127.34,127.31,0.05548843]
[1741562268513,7.8546,127.33,127.31,0.05548843]
[1741562268809,0.05463863,127.34,127.31,0.05548843]
[1741562270319,7.8546,127.33,127.31,0.05548843]
[1741562271019,7.8548,127.32,127.31,0.05548843]
[1741562271520,7.8564,127.3,127.24,7.8593]
[1741562271819,41.88,127.33,127.23,60.08188303]
[1741562272516,41.88,127.33,127.24,7.8595]
[1741562272716,0.05835874,127.29,127.27,0.05577459]
[1741562273419,7.91565874,127.29,127.27,0.05577459]
[1741562273615,0.05835874,127.29,127.27,0.05577459]
[1741562275124,0.05835874,127.29,127.28,7.8573]
[1741562275317,0.05835874,127.29,127.27,0.05577459]
[1741562276022,41.5,127.35,127.28,52.00008303]
[1741562276226,41.5,127.35,127.29,7.8563]
[1741562276520,41.5,127.35,127.28,4.1219]
[1741562276728,41.5,127.35,127.25,52.00008303]
[1741562277017,7.8546,127.33,127.29,0.0550693]
[1741562277221,0.05200914,127.31,127.29,0.0550693]
[1741562277621,7.856,127.3,127.29,0.0550693]
[1741562278219,7.90780914,127.31,127.29,0.0550693]
[1741562278931,0.05200914,127.31,127.29,0.0550693]
[1741562280321,7.856,127.3,127.29,0.0550693]
[1741562280918,0.05200914,127.31,127.23,8.0818]
[1741562281122,7.857,127.29,127.23,8.0818]
[1741562281318,8.2521,127.32,127.23,8.0818]
[1741562281528,60.25218303,127.32,127.21,4.0264]
[1741562281725,3.8805,127.31,127.21,4.0264]
[1741562281925,3.8805,127.31,127.21,11.8877]
[1741562282221,7.8586,127.26,127.25,0.05103784]
[1741562282421,41.04,127.26,127.25,0.05103784]
[1741562284447,0.05715979,127.27,127.25,0.05103784]
[1741562284648,40.95715979,127.27,127.25,0.05103784]
[1741562285143,0.05715979,127.27,127.25,0.05103784]
[1741562285641,8.0258,127.36,127.26,52.00008303]
[1741562285842,8.0258,127.36,127.26,55.95138303]
[1741562285843,12.0427,127.36,127.26,55.95138303]
[1741562286049,7.8519,127.37,127.32,7.8544]
[1741562286240,7.9721,127.41,127.32,52.00008303]
[1741562286441,4.0169,127.41,127.33,3.9513]
[1741562286642,7.8501,127.4,127.35,7.8528]
[1741562286842,0.05193291,127.38,127.36,0.0501102]
[1741562287443,40.88,127.43,127.36,0.0501102]
[1741562287849,83.998177,127.46,127.35,52.00008303]
[1741562288047,83.998177,127.46,127.33,3.9513]
[1741562288543,83.998177,127.46,127.38,0.05668774]
[1741562288752,0.0545678,127.41,127.38,0.05668774]
[1741562289045,40.94,127.4,127.38,0.05926208]
[1741562289553,40.94,127.4,127.27,263.0968]
[1741562289852,44.78,127.4,127.27,267.0606]
[1741562290047,40.94,127.4,127.31,52.00008303]
[1741562290253,40.96,127.43,127.34,52.00008303]
[1741562290546,7.8505,127.4,127.35,6.6310679]
[1741562290750,7.8505,127.4,127.37,0.05682648]
[1741562290751,0.05161266,127.4,127.37,0.05682648]
[1741562292146,7.90151266,127.4,127.37,0.05682648]
[1741562292450,0.05161266,127.4,127.37,0.05682648]
[1741562294543,7.90171266,127.4,127.37,0.05682648]
[1741562294743,0.05161266,127.4,127.37,0.05682648]
[1741562295146,40.82,127.39,127.37,0.05682648]
[1741562296149,0.05161266,127.4,127.37,0.05682648]
[1741562297248,7.8509,127.39,127.37,0.05682648]
[1741562297455,0.05161266,127.4,127.37,0.05682648]
[1741562298345,0.05161266,127.4,127.37,2.648e-05]
[1741562298653,4.09631266,127.4,127.37,2.648e-05]
[1741562299051,7.8511,127.38,127.37,2.648e-05]
[1741562301350,0.05161266,127.4,127.37,2.648e-05]
[1741562308360,7.8511,127.38,127.37,2.648e-05]
[1741562308761,0.05161266,127.4,127.37,2.648e-05]
[1741562308965,7.8511,127.39,127.37,2.648e-05]
[1741562309158,0.05161266,127.4,127.37,2.648e-05]
[1741562310165,7.8509,127.39,127.37,2.648e-05]
[1741562311067,0.05161266,127.4,127.37,2.648e-05]
[1741562311656,0.05161266,127.4,127.37,7.85152648]
[1741562312355,0.05161266,127.4,127.37,2.648e-05]
[1741562312558,40.08,127.49,127.37,31.94746087]
[1741562312756,31.94743439,127.51,127.38,3.8331]
[1741562312956,31.94743439,127.48,127.39,7.8501]
[1741562313163,31.94743439,127.48,127.38,3.8331]
[1741562313366,7.8463,127.46,127.41,7.8488]
[1741562313567,40.08,127.45,127.41,7.8488]
[1741562313760,40.13672251,127.45,127.42,0.05911632]
[1741562313960,0.05672251,127.45,127.44,7.8474]
[1741562314165,0.05672251,127.45,127.42,0.05911632]
[1741562316162,4.10112251,127.45,127.42,0.05911632]
[1741562316367,0.05672251,127.45,127.42,0.05911632]
[1741562317072,7.848,127.43,127.42,0.00086467]
[1741562317865,7.85,127.4,127.35,3.924]
[1741562318182,40.08,127.43,127.34,3.8847]
[1741562318772,40.08,127.43,127.35,7.8529]
[1741562319171,0.05930301,127.4,127.38,0.0544811]
[1741562320370,0.05930301,127.4,127.39,7.8505]
[1741562321472,0.05930301,127.4,127.38,0.0544811]
[1741562323270,7.90960301,127.4,127.38,0.0544811]
[1741562324674,0.05930301,127.4,127.38,0.0544811]
[1741562325174,0.05930301,127.4,127.39,7.8505]
[1741562326073,40.08,127.48,127.43,7.848]
[1741562326269,40.08,127.48,127.4,31.94743439]
[1741562326470,47.9253,127.48,127.4,31.94743439]
[1741562326669,11.7443,127.52,127.39,4.1121]
[1741562326871,40.08,127.5,127.39,4.1121]
[1741562327075,7.8466,127.46,127.44,0.05384541]
[1741562327272,0.05178907,127.47,127.44,0.05384541]
[1741562328070,0.05178907,127.47,127.44,7.90094541]
[1741562328377,0.05178907,127.47,127.44,0.05384541]
[1741562330569,0.05178907,127.47,127.45,7.8464]
[1741562330771,0.05178907,127.47,127.44,0.05384541]
[1741562333078,7.89738907,127.47,127.44,0.05384541]
[1741562333280,0.05178907,127.47,127.44,0.05384541]
[1741562334771,7.8468,127.45,127.44,0.05384541]
[1741562335481,47.9068,127.45,127.44,0.05384541]
[1741562335777,7.849,127.42,127.37,7.8514]
[1741562335974,40.06,127.45,127.36,4.2017]
[1741562336376,7.8496,127.41,127.36,4.2017]
[1741562336576,40.06,127.45,127.37,6.69854986]
[1741562336882,0.05557043,127.42,127.4,0.05815229]
[1741562337381,7.8493,127.41,127.4,0.05815229]
[1741562337682,0.05557043,127.42,127.4,0.05815229]
[1741562337977,7.8493,127.41,127.4,0.05815229]
[1741562338183,0.05557043,127.42,127.4,0.05815229]
[1741562338582,7.90457043,127.42,127.4,0.05815229]
[1741562339086,0.05557043,127.42,127.4,0.05815229]
[1741562339282,7.8493,127.41,127.4,0.05815229]
[1741562341474,7.90457043,127.42,127.4,0.05815229]
[1741562341678,0.05557043,127.42,127.4,0.05815229]
[1741562342487,195.8282,127.49,127.4,32.00558668]
[1741562342784,10.76608115,127.53,127.43,31.94743439]
[1741562342988,10.76608115,127.53,127.46,31.94743439]
[1741562343479,10.76608115,127.53,127.44,50.93951114]
[1741562343679,0.04975818,127.51,127.48,0.05361087]
[1741562344789,4.07915818,127.51,127.41,4.0143]
[1741562344982,4.07915818,127.51,127.42,6.70130398]
[1741562345181,4.0294,127.51,127.42,6.70130398]
[1741562345581,4.0294,127.51,127.43,6.70130398]
[1741562345986,7.89800819,127.48,127.46,0.05155282]
[1741562346188,0.05250819,127.48,127.46,0.05155282]
[1741562346387,0.05250819,127.48,127.46,7.89765282]
[1741562346579,192.0,127.55,127.46,0.05155282]
[1741562346887,122.78421139,127.56,127.47,10.74710398]
[1741562347080,43.058177,127.56,127.47,35.99323439]
[1741562347287,40.04,127.58,127.5,31.94743439]
[1741562347483,7.8388,127.58,127.51,7.8429]
[1741562347681,47.095677,127.6,127.51,7.8429]
[1741562347988,0.05648861,127.56,127.53,0.05996183]
[1741562349791,7.8406,127.55,127.53,0.05996183]
[1741562349980,0.05648861,127.56,127.53,0.05996183]
[1741562350185,0.05648861,127.56,127.47,4.0458]
[1741562350384,31.94743439,127.54,127.41,40.25263439]
[1741562350583,31.94743439,127.54,127.41,44.42763439]
[1741562350584,4.0117,127.53,127.41,44.42763439]
[1741562350782,7.8454,127.48,127.41,12.4802]
[1741562350987,40.04,127.52,127.42,38.87475411]
[1741562351185,31.94743439,127.51,127.42,38.87475411]
[1741562351391,0.05299865,127.48,127.46,0.0506169]
[1741562351593,40.04,127.47,127.42,32.18860404]
[1741562351890,7.8468,127.45,127.42,32.18860404]
[1741562352195,40.04,127.47,127.42,32.18860404]
[1741562352490,7.8468,127.45,127.42,32.18860404]
[1741562352792,0.0572591,127.45,127.42,32.24028815]
[1741562353380,4.2501591,127.45,127.42,32.24028815]
[1741562353790,7.8479,127.44,127.42,32.24028815]
[1741562353986,4.2501591,127.45,127.42,0.05168411]
[1741562354393,0.0572591,127.45,127.42,0.05168411]
[1741562357399,0.0572591,127.45,127.42,4.16028411]
[1741562357596,7.8442,127.5,127.42,4.16028411]
[1741562357794,44.2329,127.51,127.42,4.16028411]
[1741562358102,44.2329,127.51,127.42,4.1086]
[1741562358301,7.8454,127.48,127.42,4.1086]
[1741562358496,44.2329,127.51,127.42,4.1086]
[1741562358694,0.05705148,127.46,127.44,0.05753378]
[1741562358890,40.04,127.45,127.44,0.05753378]
[1741562359298,40.04,127.45,127.35,60.23705366]
[1741562359600,40.04,127.45,127.36,6.70085971]
[1741562359801,7.849,127.42,127.36,6.70085971]
[1741562359999,40.04,127.45,127.36,6.70085971]
[1741562360200,51.89785366,127.44,127.36,6.70085971]
[1741562360402,0.05787804,127.42,127.39,0.05417934]
[1741562361004,7.8496,127.41,127.39,0.05417934]
[1741562361498,0.05787804,127.42,127.39,0.05417934]
[1741562361703,7.8493,127.41,127.39,0.05417934]
[1741562361901,0.05787804,127.42,127.39,0.05417934]
[1741562362599,7.90657804,127.42,127.39,0.05417934]
[1741562362801,0.05787804,127.42,127.39,0.05417934]
[1741562363203,7.8499,127.4,127.39,0.05417934]
[1741562364812,7.8499,127.4,127.39,7.934e-05]
[1741562365612,11.7699,127.4,127.39,7.934e-05]
[1741562366311,15.9701,127.4,127.39,7.934e-05]
[1741562366713,8.1202,127.4,127.3,8.404]
[1741562366907,7.8545,127.33,127.3,8.404]
[1741562367211,40.04,127.35,127.3,8.404]
[1741562367411,40.04,127.35,127.3,4.2209]
[1741562367412,7.8552,127.32,127.3,4.2209]
[1741562368214,7.90688205,127.32,127.3,4.28058526]
[1741562368414,0.05168205,127.32,127.3,4.28058526]
[1741562369510,7.90678205,127.32,127.3,4.28058526]
[1741562369910,0.05168205,127.32,127.3,4.28058526]
[1741562370614,7.90658205,127.32,127.3,4.28058526]
[1741562370815,0.05168205,127.32,127.3,4.28058526]
[1741562371310,4.2002,127.4,127.3,4.28058526]
[1741562371511,192.0,127.41,127.32,51.89785366]
[1741562371711,40.04,127.4,127.32,51.89785366]
[1741562372312,40.04,127.4,127.3,4.2209]
[1741562372513,0.05027868,127.37,127.35,0.05860805]
[1741562376118,7.90207868,127.37,127.35,0.05860805]
[1741562377521,7.8523,127.36,127.35,0.05860805]
[1741562377720,0.05027868,127.37,127.35,0.05860805]
[1741562378719,7.90227868,127.37,127.35,0.05860805]
[1741562379517,0.05027868,127.37,127.35,0.05860805]
[1741562380419,7.8523,127.36,127.35,0.05860805]
[1741562380619,0.05027868,127.37,127.35,0.05860805]
[1741562381225,7.8523,127.36,127.35,0.05860805]
[1741562381427,0.05027868,127.37,127.35,0.05860805]
[1741562381724,40.02,127.36,127.35,0.05860805]
[1741562381926,47.8723,127.36,127.35,0.05860805]
[1741562382725,40.02,127.36,127.35,0.05860805]
[1741562383222,47.8723,127.36,127.35,0.05860805]
[1741562384927,47.8723,127.36,127.35,8.05e-06]
[1741562385722,7.8567,127.29,127.26,4.1236]
[1741562386229,7.8564,127.3,127.26,4.1236]
[1741562386426,40.02,127.31,127.26,4.1236]
[1741562386828,0.04978387,127.3,127.27,0.0522284]
[1741562388528,7.90598387,127.3,127.27,0.0522284]
[1741562388723,0.04978387,127.3,127.27,0.0522284]
[1741562388926,40.02,127.33,127.29,7.8567]
[1741562389123,4.2149,127.37,127.26,4.1236]
[1741562389327,40.02,127.36,127.26,11.9817]
[1741562389528,7.8556,127.31,127.26,4.1236]
[1741562389828,7.8556,127.31,127.26,11.9818]
[1741562390029,7.91615747,127.3,127.27,0.05265833]
[1741562390325,7.90782829,127.3,127.27,0.05887564]
[1741562390532,0.05172829,127.3,127.27,0.05887564]
[1741562391832,7.90802829,127.3,127.27,0.05887564]
[1741562392229,0.05172829,127.3,127.27,0.05887564]
[1741562392432,7.90812829,127.3,127.27,0.05887564]
[1741562392730,0.05172829,127.3,127.27,0.05887564]
[1741562393134,7.8568,127.29,127.27,0.05887564]
[1741562393334,0.05172829,127.3,127.27,0.05887564]
[1741562394330,7.8573,127.28,127.27,0.05887564]
[1741562394933,7.8573,127.28,127.27,7.564e-05]
[1741562395736,47.8773,127.28,127.27,7.564e-05]
[1741562397638,7.8567,127.29,127.27,7.564e-05]
[1741562398138,44.08432829,127.3,127.27,7.564e-05]
[1741562398341,7.8573,127.28,127.27,7.564e-05]
[1741562399040,4.06432829,127.3,127.27,7.564e-05]
[1741562399232,40.02,127.29,127.27,7.564e-05]
[1741562400138,7.8573,127.28,127.27,7.564e-05]
[1741562404635,7.8604,127.23,127.22,6.72502562]
[1741562404942,47.8804,127.23,127.22,6.72502562]
[1741562405246,7.862,127.21,127.18,3.8778]
[1741562405735,0.05463531,127.21,127.18,0.04391192]
[1741562405941,7.91653531,127.21,127.18,0.04391192]
[1741562406141,0.05463531,127.21,127.18,0.04391192]
[1741562406340,7.91653531,127.21,127.18,0.04391192]
[1741562406542,0.05463531,127.21,127.18,0.04391192]
[1741562406931,7.8628,127.19,127.18,0.04391192]
[1741562407334,0.05463531,127.21,127.13,118.02488149]
[1741562407540,31.97229607,127.19,127.13,118.02488149]
[1741562407740,40.02,127.18,127.13,118.02488149]
[1741562407940,7.8657,127.15,127.13,118.02488149]
[1741562408436,7.91629965,127.15,127.13,118.02488149]
[1741562408640,0.05059965,127.15,127.1,7.9661]
[1741562409739,7.8663,127.14,127.1,7.9661]
[1741562409940,0.05059965,127.15,127.1,7.9661]
[1741562410738,7.8672,127.12,127.1,7.9661]
[1741562410935,40.02,127.18,127.1,7.9661]
[1741562411144,0.05575525,127.12,127.1,7.9661]
[1741562411341,40.02,127.18,127.1,7.9661]
[1741562411736,0.05475266,127.15,127.1,7.9661]
[1741562411948,7.92065266,127.15,127.1,7.9661]
[1741562412243,0.05475266,127.15,127.1,7.9661]
[1741562412548,0.05475266,127.15,127.13,7.8665]
[1741562412845,40.02,127.19,127.1,7.9661]
[1741562413744,0.05710729,127.16,127.13,0.05409968]
[1741562414347,0.05710729,127.16,127.13,9.968e-05]
[1741562414748,7.8659,127.14,127.13,9.968e-05]
[1741562414945,47.8859,127.14,127.13,9.968e-05]
[1741562422056,79.85819607,127.14,127.13,9.968e-05]
[1741562423353,71.99229607,127.14,127.05,8.1235]
[1741562423657,7.8702,127.08,127.05,3.9461]
[1741562424256,40.02,127.09,127.05,3.9461]
[1741562424454,40.02,127.09,127.03,3.959]
[1741562424659,7.8721,127.04,127.03,3.959]
[1741562425358,0.04998426,127.05,126.99,4.1921]
[1741562425556,0.04998426,127.05,126.99,12.0976]
[1741562426557,7.8728,127.03,126.99,12.0976]
[1741562426960,0.05852996,127.02,126.99,12.0976]
[1741562427955,31.97229607,127.01,126.88,40.02]
[1741562428157,7.8753,126.99,126.93,11.9061]
[1741562428459,0.05476848,126.96,126.94,4.2101]
[1741562428658,0.05476848,126.96,126.94,12.0883]
[1741562428857,0.05476848,126.96,126.94,4.2101]
[1741562430457,40.02,127.03,126.94,8.1501]
[1741562430651,7.874,127.01,126.95,7.8775]
[1741562430856,40.02,127.02,126.94,4.2101]
[1741562431161,7.8748,127.0,126.94,4.2101]
[1741562431353,40.02,127.02,126.96,7.877]
[1741562431556,40.02,127.02,126.94,4.2101]
[1741562431757,7.93526823,127.0,126.98,0.05267259]
[1741562431958,0.06016823,127.0,126.98,0.05267259]
[1741562433257,40.02,127.02,126.98,0.05267259]
[1741562433457,40.02,127.04,126.98,0.05267259]
[1741562433659,31.97229607,127.08,126.98,0.05267259]
[1741562433855,31.97229607,127.08,126.95,31.97229607]
[1741562433856,40.02,127.06,126.95,31.97229607]
[1741562434061,40.02,127.06,127.0,7.8742]
[1741562434362,40.02,127.06,126.95,31.97229607]
[1741562434561,0.0527662,127.04,127.03,7.8727]
[1741562434754,40.02,127.09,127.03,3.862]
[1741562435450,71.99229607,127.09,126.96,31.97229607]
[1741562435654,7.8707,127.07,127.02,7.8728]
[1741562435856,71.99229607,127.09,126.99,3.862]
[1741562435857,40.02,127.09,126.99,35.83429607]
[1741562436057,0.05175068,127.06,127.03,0.05954285]
[1741562436254,7.8719,127.05,127.03,0.05954285]
[1741562437261,7.8721,127.04,127.03,0.05954285]
[1741562440255,47.8921,127.04,127.03,0.05954285]
[1741562440456,40.02,127.04,127.03,0.05954285]
[1741562441366,47.8921,127.04,127.03,0.05954285]
[1741562441664,40.02,127.04,127.03,0.05954285]
[1741562443566,47.8921,127.04,127.03,0.05954285]
[1741562444063,40.02,127.04,127.03,0.05954285]
[1741562445062,47.8921,127.04,127.03,0.05954285]
[1741562449765,0.05175068,127.06,127.03,0.05954285]
[1741562450171,0.05175068,127.06,127.03,7.93184285]
[1741562450371,0.05175068,127.06,127.03,0.05954285]
[1741562450773,0.05175068,127.06,127.03,7.93194285]
[1741562450973,0.05175068,127.06,127.03,0.05954285]
[1741562452967,0.05175068,127.06,127.03,3.94744285]
[1741562453167,0.05175068,127.06,127.05,7.8715]
[1741562453366,263.6373,127.13,127.04,6.75481848]
[1741562453367,43.8573,127.13,127.04,6.75481848]
[1741562453566,39.98,127.13,127.05,6.75481848]
[1741562453873,39.98,127.13,127.06,7.9661]
[1741562454366,4.1563,127.16,127.08,0.05076079]
[1741562454367,0.05104531,127.11,127.08,0.05076079]
[1741562454565,7.866,127.14,127.07,6.75481848]
[1741562454770,7.866,127.14,127.08,6.75481848]
[1741562454972,39.98,127.16,127.08,6.75481848]
[1741562455268,10.76608115,127.18,127.09,6.75481848]
[1741562455473,39.98,127.17,127.09,14.62341848]
[1741562455772,39.98,127.17,127.09,6.75481848]
[1741562455973,0.05337308,127.14,127.12,0.05165792]
[1741562457967,31.97229607,127.23,127.12,0.05165792]
[1741562458162,39.96,127.22,127.12,0.05165792]
[1741562458364,39.96,127.22,127.11,31.97229607]
[1741562458562,204.1666,127.25,127.13,6.75861304]
[1741562458766,31.97229607,127.22,127.13,6.75861304]
[1741562459172,32.02341546,127.19,127.16,0.05054638]
[1741562459367,39.96,127.18,127.16,0.05054638]
[1741562459569,39.96,127.18,127.09,39.96]
[1741562459767,39.96,127.18,127.16,0.05737587]
[1741562459971,39.96,127.18,127.1,3.9739]
[1741562460174,40.01202388,127.18,127.16,0.05462411]
[1741562460368,7.8645,127.17,127.1,11.8421]
[1741562460568,7.8645,127.17,127.16,0.05728693]
[1741562460874,39.96,127.18,127.1,3.9739]
[1741562461065,39.96,127.18,127.11,31.97229607]
[1741562461271,223.97229607,127.23,127.11,31.97229607]
[1741562461472,39.96,127.21,127.11,31.97229607]
[1741562461672,39.96,127.21,127.12,6.74999023]
[1741562461868,7.8639,127.18,127.13,7.8665]
[1741562462064,0.05344286,127.17,127.15,0.05214659]
[1741562462267,39.94,127.22,127.15,0.05214659]
[1741562462467,7.8619,127.21,127.16,7.8643]
[1741562462671,39.94,127.22,127.13,4.0854]
[1741562462872,201.29187759,127.32,127.17,31.97229607]
[1741562463082,7.858,127.27,127.2,31.97229607]
[1741562463376,0.05754178,127.25,127.23,0.05016211]
[1741562463774,71.91229607,127.3,127.23,0.05016211]
[1741562463975,7.8597,127.24,127.23,0.05016211]
[1741562465678,7.8597,127.24,127.23,6.211e-05]
[1741562466473,47.83689496,127.25,127.23,6.211e-05]
[1741562466672,39.97759496,127.25,127.23,6.211e-05]
[1741562466879,19.97759496,127.25,127.23,6.211e-05]
[1741562468074,20.03337087,127.25,127.23,6.211e-05]
[1741562468273,0.05577591,127.25,127.23,7.86036211]
[1741562468470,0.05577591,127.25,127.23,6.211e-05]
[1741562468775,7.8556,127.31,127.26,7.8583]
[1741562469477,7.8561,127.3,127.24,7.99]
[1741562469679,39.92,127.34,127.24,7.99]
[1741562469879,0.06001118,127.28,127.26,0.05946216]
[1741562470075,39.92,127.34,127.24,7.99]
[1741562470281,0.05493963,127.28,127.26,0.05614097]
[1741562470481,31.97229607,127.32,127.24,7.99]
[1741562470680,0.05747589,127.28,127.26,0.05515055]
[1741562471181,7.8579,127.27,127.26,0.05515055]
[1741562472185,12.11457589,127.28,127.26,0.05515055]
[1741562472478,0.05747589,127.28,127.26,0.05515055]
[1741562476381,7.855,127.32,127.26,0.05515055]
[1741562476584,44.0796,127.35,127.26,0.05515055]
[1741562476890,31.97229607,127.33,127.25,4.2241]
[1741562477185,31.97229607,127.33,127.21,39.9]
[1741562477384,7.8591,127.26,127.21,43.9589]
[1741562477585,39.88,127.3,127.26,0.05958355]
[1741562477785,0.05149345,127.25,127.21,43.9589]
[1741562477985,7.8588,127.26,127.21,43.9589]
[1741562478180,0.05498286,127.24,127.22,0.0531419]
[1741562478377,71.85229607,127.3,127.21,4.0589]
[1741562478578,0.05192816,127.24,127.21,0.05225892]
[1741562478778,8.0264,127.29,127.2,8.0969]
[1741562478984,7.8615,127.22,127.21,0.05080973]
[1741562479185,0.05708265,127.24,127.2,4.1723]
[1741562479386,0.05708265,127.24,127.18,11.9223]
[1741562479387,0.05708265,127.24,127.13,331.43229607]
[1741562479593,7.8605,127.23,127.2,0.05354971]
[1741562479793,39.86,127.25,127.15,8.0933]
[1741562480089,0.05113242,127.23,127.2,0.05232649]
[1741562480289,0.05113242,127.23,127.21,7.8613]
[1741562480489,0.05113242,127.23,127.2,0.05232649]
[1741562480794,7.861,127.22,127.2,0.05232649]
[1741562480992,0.05113242,127.23,127.2,0.05232649]
[1741562482293,7.91193242,127.23,127.2,0.05232649]
[1741562482789,7.8612,127.22,127.2,0.05232649]
[1741562482995,0.05113242,127.23,127.2,0.05232649]
[1741562485389,7.91203242,127.23,127.2,0.05232649]
[1741562485592,0.05113242,127.23,127.2,0.05232649]
[1741562485897,0.05113242,127.23,127.2,7.91452649]
[1741562486399,0.05113242,127.23,127.2,0.05232649]
[1741562486998,0.05113242,127.23,127.08,192.0]
[1741562486999,39.84,127.22,127.11,8.0809]
[1741562487304,3.8675,127.21,127.11,8.0809]
[1741562488001,31.97229607,127.2,127.11,8.0809]
[1741562488201,7.91966826,127.17,127.15,0.05294142]
[1741562488390,0.05526826,127.17,127.15,0.05294142]
[1741562488698,7.8647,127.16,127.15,0.05294142]
[1741562489199,71.86756433,127.17,127.07,85.83627745]
[1741562489406,71.81229607,127.17,127.07,89.89607745]
[1741562489601,7.8669,127.13,127.07,11.9297]
[1741562489792,71.81229607,127.17,127.07,4.0598]
[1741562489995,31.97229607,127.14,127.07,4.0598]
[1741562490404,7.8676,127.12,127.07,4.0598]
[1741562490600,31.97229607,127.14,127.07,4.0598]
[1741562490903,7.92502445,127.11,127.08,0.05488333]
[1741562491609,0.05682445,127.11,127.08,0.05488333]
[1741562493298,0.05682445,127.11,127.09,7.8685]
[1741562493507,0.05682445,127.11,127.09,12.0383]
[1741562493802,0.05682445,127.11,127.09,4.1698]
[1741562494003,0.05682445,127.11,127.08,0.05488333]
[1741562494205,7.8684,127.1,127.08,0.05488333]